[Event "Dutch Meesterklasse 2024-25"]
[Site "Netherlands"]
[Date "2024.11.23"]
[Round "4.1"]
[White "Tabak, Stefan"]
[Black "Grutter, Tim"]
[Result "0-1"]
[ECO "C79"]
[WhiteElo "2188"]
[BlackElo "2352"]
[Annotator "RC"]
[PlyCount "40"]
[EventDate "2024.09.21"]
[EventType "team-tourn"]
[EventCountry "NED"]
[SourceTitle "playchess.com"]
[Source "ChessBase"]
[SourceQuality "1"]
[TimeControl "40/5400+30:1800+30"]

1. e4 {[%emt 0:00:05]} e5 {[%emt 0:00:15]} 2. Nf3 {[%emt 0:00:36]} Nc6 {[%emt 0:00:07]} 3. Bb5 {[%emt 0:00:15]} a6 {[%emt 0:00:09]} 4. Ba4 {[%emt 0:00:06]} Nf6 {[%emt 0:00:05]} 5. O-O {[%emt 0:00:12]} d6 {[%emt 0:00:14]} 6. Re1 {[%emt 0:00:28]} Bd7 {[%emt 0:00:08]} 7. c3 {[%emt 0:01:01]} g6 {[%emt 0:00:08]} 8. d4 {[%emt 0:01:00]} Bg7 {[%emt 0:00:05]} 9. Nbd2 {[%emt 0:03:23]} O-O {[%emt 0:01:08]} 10. h3 {[%emt 0:06:41]} exd4 {[%emt 0:00:41]} 11. cxd4 {[%emt 0:05:10]} Nb4 {[%emt 0:00:10]} 12. Bxd7 {[%emt 0:02:22]} Qxd7 {[%emt 0:02:17]} 13. Qb3 {[%emt 0:04:00]} a5 {[%emt 0:02:04]} 14. Nc4 {[%emt 0:21:31]} b5 {[%emt 0:09:52]} 15. Nxa5 {[%emt 0:14:41]} c5 {[%emt 0:00:20]} 16. Bd2 {[%emt 0:00:13]} Rxa5 {[%emt 0:02:20]} 17. a3 {[%emt 0:00:05]} Qa7 {[%emt 0:20:09]} 18. Rad1 {[%emt 0:02:20]} Nc6 {[%emt 0:05:32]} 19. Bxa5 {[%emt 0:01:11]} Nxa5 {[%emt 0:16:34]} 20. dxc5 {[%emt 0:04:38]} Nxb3 {[%emt 0:00:03]} 0-1

[Event "Dutch Meesterklasse 2024-25"]
[Site "Netherlands"]
[Date "2024.11.23"]
[Round "4.2"]
[White "Schoppen, Casper"]
[Black "Jakhari, Ansh"]
[Result "1-0"]
[ECO "E98"]
[WhiteElo "2544"]
[BlackElo "2148"]
[Annotator "RC"]
[PlyCount "63"]
[EventDate "2024.09.21"]
[EventType "team-tourn"]
[EventCountry "NED"]
[SourceTitle "playchess.com"]
[Source "ChessBase"]
[SourceQuality "1"]
[TimeControl "40/5400+30:1800+30"]

1. Nf3 {[%emt 0:00:37]} Nf6 {[%emt 0:00:22]} 2. c4 {[%emt 0:00:42]} g6 {[%emt 0:00:22]} 3. Nc3 {[%emt 0:00:24]} Bg7 {[%emt 0:00:10]} 4. e4 {[%emt 0:00:34]} d6 {[%emt 0:00:37]} 5. d4 {[%emt 0:00:08]} O-O {[%emt 0:00:07]} 6. Be2 {[%emt 0:00:17]} e5 {[%emt 0:00:11]} 7. O-O {[%emt 0:00:14]} Nc6 {[%emt 0:00:06]} 8. d5 {[%emt 0:00:10]} Ne7 {[%emt 0:00:02]} 9. Ne1 {[%emt 0:01:28]} Nd7 {[%emt 0:01:52]} 10. Nd3 {[%emt 0:01:17]} f5 {[%emt 0:00:45]} 11. f3 {[%emt 0:00:32]} f4 {[%emt 0:02:04]} 12. b4 {[%emt 0:00:15]} g5 {[%emt 0:01:41]} 13. c5 {[%emt 0:03:18]} Nf6 {[%emt 0:01:22]} 14. a4 {[%emt 0:02:43]} h5 {[%emt 0:02:15]} 15. a5 {[%emt 0:00:13]} g4 {[%emt 0:03:50]} 16. fxg4 {[%emt 0:00:47]} hxg4 {[%emt 0:00:55]} 17. Nf2 {[%emt 0:00:07]} Ng6 {[%emt 0:31:46]} 18. Nxg4 {[%emt 0:02:18]} Nxg4 {[%emt 0:01:59]} 19. Bxg4 {[%emt 0:00:09]} Nh4 {[%emt 0:11:07]} 20. Bxc8 {[%emt 0:05:41]} Rxc8 {[%emt 0:01:56]} 21. Qg4 {[%emt 0:04:14]} Kh7 {[%emt 0:04:46]} 22. g3 {[%emt 0:03:04]} Ng6 {[%emt 0:00:41]} 23. a6 {[%emt 0:03:33]} bxa6 {[%emt 0:03:26]} 24. Rxa6 {[%emt 0:01:36]} Bh6 {[%emt 0:07:58]} 25. Qh5 {[%emt 0:03:21]} Kg7 {[%emt 0:02:49]} 26. Ra2 {[%emt 0:03:35]} Rh8 {[%emt 0:03:11]} 27. Qf5 {[%emt 0:09:15]} Bg5 {[%emt 0:05:45]} 28. gxf4 {[%emt 0:01:50]} Bxf4 {[%emt 0:02:40]} 29. Rg2 {[%emt 0:04:41]} Qf6 {[%emt 0:00:30]} 30. Bxf4 {[%emt 0:02:10]} exf4 {[%emt 0:00:17]} 31. Rxf4 {[%emt 0:00:26]} Qd4+ {[%emt 0:00:38]} 32. Kh1 {[%emt 0:00:46]} 1-0

[Event "Dutch Meesterklasse 2024-25"]
[Site "Netherlands"]
[Date "2024.11.23"]
[Round "4.3"]
[White "Arnold, Rhys"]
[Black "Pham, Khoi"]
[Result "1/2-1/2"]
[ECO "C84"]
[WhiteElo "2338"]
[BlackElo "2264"]
[Annotator "RC"]
[PlyCount "88"]
[EventDate "2024.09.21"]
[EventType "team-tourn"]
[EventCountry "NED"]
[SourceTitle "playchess.com"]
[Source "ChessBase"]
[SourceQuality "1"]
[TimeControl "40/5400+30:1800+30"]

1. e4 {[%emt 0:00:29]} e5 {[%emt 0:00:44]} 2. Nf3 {[%emt 0:00:08]} Nc6 {[%emt 0:00:06]} 3. Bb5 {[%emt 0:00:04]} a6 {[%emt 0:00:24]} 4. Ba4 {[%emt 0:03:29]} Nf6 {[%emt 0:00:17]} 5. O-O {[%emt 0:00:07]} Be7 {[%emt 0:00:07]} 6. d3 {[%emt 0:01:53]} b5 {[%emt 0:00:41]} 7. Bb3 {[%emt 0:00:05]} d6 {[%emt 0:00:06]} 8. a4 {[%emt 0:00:45]} Bd7 {[%emt 0:01:29]} 9. c3 {[%emt 0:01:04]} O-O {[%emt 0:01:22]} 10. Bc2 {[%emt 0:01:41]} Re8 {[%emt 0:01:39]} 11. Re1 {[%emt 0:04:57]} h6 {[%emt 0:03:06]} 12. Nbd2 {[%emt 0:01:01]} Bf8 {[%emt 0:02:18]} 13. h3 {[%emt 0:07:00]} Rb8 {[%emt 0:05:46]} 14. axb5 {[%emt 0:15:10]} axb5 {[%emt 0:00:05]} 15. Bb3 {[%emt 0:00:04]} Ra8 {[%emt 0:06:46]} 16. Rxa8 {[%emt 0:00:57]} Qxa8 {[%emt 0:00:05]} 17. Nf1 {[%emt 0:01:09]} Na5 {[%emt 0:03:47]} 18. Bc2 {[%emt 0:01:40]} c5 {[%emt 0:00:15]} 19. Bd2 {[%emt 0:01:37]} Nc6 {[%emt 0:02:56]} 20. Bb3 {[%emt 0:06:27]} Ne7 {[%emt 0:07:46]} 21. Nh4 {[%emt 0:16:33]} d5 {[%emt 0:20:42]} 22. exd5 {[%emt 0:09:21]} Nexd5 {[%emt 0:00:37]} 23. Nf3 {[%emt 0:00:48]} Qb8 {[%emt 0:02:48]} 24. Ng3 {[%emt 0:02:29]} Bc6 {[%emt 0:03:27]} 25. Ne4 {[%emt 0:02:49]} Nxe4 {[%emt 0:01:54]} 26. dxe4 {[%emt 0:00:26]} Nf6 {[%emt 0:00:10]} 27. Bc2 {[%emt 0:00:48]} c4 {[%emt 0:03:58]} 28. Qe2 {[%emt 0:02:02]} Qd6 {[%emt 0:04:00]} 29. Bc1 {[%emt 0:04:49]} Qe6 {[%emt 0:02:02]} 30. Nd2 {[%emt 0:03:08]} Nd7 {[%emt 0:04:30]} 31. b3 {[%emt 0:02:25]} Nb6 {[%emt 0:00:39]} 32. Bb2 {[%emt 0:01:34]} Rd8 {[%emt 0:01:30]} 33. bxc4 {[%emt 0:01:03]} bxc4 {[%emt 0:02:09]} 34. Ra1 {[%emt 0:00:35]} Ra8 {[%emt 0:03:49]} 35. Rxa8 {[%emt 0:01:27]} Bxa8 {[%emt 0:00:05]} 36. Nb1 {[%emt 0:00:41]} Qc6 {[%emt 0:05:05]} 37. Qd1 {[%emt 0:03:13]} Nd7 {[%emt 0:03:57]} 38. Ba3 {[%emt 0:01:28]} Nc5 {[%emt 0:06:09]} 39. Qd8 {[%emt 0:01:24]} Ne6 {[%emt 0:01:07]} 40. Qb8 {[%emt 0:00:33]} Qb7 {[%emt 0:01:30]} 41. Qe8 {[%emt 0:09:51]} Qa6 {[%emt 0:11:41]} 42. Qb8 {[%emt 0:12:11]} Bc6 {[%emt 0:03:46]} 43. Bxf8 {[%emt 0:02:40]} Nxf8 {[%emt 0:00:05]} 44. Qb2 {[%emt 0:00:09]} Nd7 {[%emt 0:03:19]} 1/2-1/2

[Event "Dutch Meesterklasse 2024-25"]
[Site "Netherlands"]
[Date "2024.11.23"]
[Round "4.4"]
[White "Cheng, Bobby"]
[Black "Oglaza, Oskar"]
[Result "1-0"]
[ECO "A57"]
[WhiteElo "2594"]
[BlackElo "2313"]
[Annotator "RC"]
[PlyCount "99"]
[EventDate "2024.09.21"]
[EventType "team-tourn"]
[EventCountry "NED"]
[SourceTitle "playchess.com"]
[Source "ChessBase"]
[SourceQuality "1"]
[TimeControl "40/5400+30:1800+30"]

1. d4 {[%emt 0:00:39]} Nf6 {[%emt 0:00:31]} 2. c4 {[%emt 0:00:08]} c5 {[%emt 0:00:29]} 3. d5 {[%emt 0:00:24]} b5 {[%emt 0:00:10]} 4. cxb5 {[%emt 0:01:47]} a6 {[%emt 0:00:07]} 5. e3 {[%emt 0:00:29]} axb5 {[%emt 0:07:12]} 6. Bxb5 {[%emt 0:00:30]} Bb7 {[%emt 0:00:05]} 7. Nc3 {[%emt 0:01:49]} Qa5 {[%emt 0:01:32]} 8. Bd2 {[%emt 0:03:31]} Qb6 {[%emt 0:00:05]} 9. Nf3 {[%emt 0:03:10]} Nxd5 {[%emt 0:00:41]} 10. a4 {[%emt 0:00:13]} e6 {[%emt 0:09:55]} 11. O-O {[%emt 0:14:29]} Be7 {[%emt 0:13:05]} 12. e4 {[%emt 0:00:21]} Nxc3 {[%emt 0:09:25]} 13. Bxc3 {[%emt 0:00:09]} Bxe4 {[%emt 0:00:03]} 14. Ne5 {[%emt 0:16:25]} O-O {[%emt 0:01:01]} 15. Qg4 {[%emt 0:04:01]} Bg6 {[%emt 0:12:57]} 16. Nxd7 {[%emt 0:06:49]} Nxd7 {[%emt 0:00:39]} 17. Bxd7 {[%emt 0:00:04]} Rfd8 {[%emt 0:03:43]} 18. Bb5 {[%emt 0:05:13]} Qb7 {[%emt 0:09:06]} 19. Rfe1 {[%emt 0:07:03]} Rd5 {[%emt 0:04:07]} 20. Qf3 {[%emt 0:00:56]} Bh5 {[%emt 0:00:49]} 21. Qe4 {[%emt 0:01:18]} Bg6 {[%emt 0:00:11]} 22. Qe3 {[%emt 0:01:38]} Rad8 {[%emt 0:05:12]} 23. Be2 {[%emt 0:02:47]} Qb3 {[%emt 0:05:48]} 24. a5 {[%emt 0:02:42]} c4 {[%emt 0:03:09]} 25. Qf4 {[%emt 0:06:39]} Bd3 {[%emt 0:02:13]} 26. Bf3 {[%emt 0:01:30]} Rf5 {[%emt 0:07:41]} 27. Qg3 {[%emt 0:11:19]} Rg5 {[%emt 0:02:50]} 28. Qc7 {[%emt 0:00:15]} Kf8 {[%emt 0:00:49]} 29. h4 {[%emt 0:06:31]} Rc5 {[%emt 0:00:29]} 30. Qg3 {[%emt 0:00:09]} g6 {[%emt 0:00:50]} 31. Qf4 {[%emt 0:01:37]} g5 {[%emt 0:00:24]} 32. Qe3 {[%emt 0:00:10]} Rf5 {[%emt 0:00:13]} 33. Qb6 {[%emt 0:01:39]} Rb5 {[%emt 0:00:43]} 34. Qc7 {[%emt 0:00:21]} Rc5 {[%emt 0:00:17]} 35. Bg7+ {[%emt 0:00:24]} Kxg7 {[%emt 0:00:05]} 36. Qxe7 {[%emt 0:00:01]} Rdc8 {[%emt 0:00:14]} 37. hxg5 {[%emt 0:00:36]} Qxb2 {[%emt 0:00:06]} 38. a6 {[%emt 0:00:16]} R5c7 {[%emt 0:01:42]} 39. Qf6+ {[%emt 0:01:04]} Qxf6 {[%emt 0:00:07]} 40. gxf6+ {[%emt 0:00:02]} Kxf6 {[%emt 0:00:06]} 41. a7 {[%emt 0:30:06]} Kf5 {[%emt 0:30:52]} 42. Ra5+ {[%emt 0:01:14]} Kf4 {[%emt 0:00:20]} 43. a8=Q {[%emt 0:00:00]} Rxa8 {[%emt 0:00:00]} 44. Bxa8 {[%emt 0:00:00]} c3 {[%emt 0:00:00]} 45. g3+ {[%emt 0:00:00]} Kg4 {[%emt 0:00:00]} 46. Kg2 {[%emt 0:00:00]} f5 {[%emt 0:00:00]} 47. f4 {[%emt 0:00:00]} Kh5 {[%emt 0:00:00]} 48. Rxe6 {[%emt 0:00:00]} Be2 {[%emt 0:00:00]} 49. Rxf5+ {[%emt 0:00:00]} Kg4 {[%emt 0:00:00]} 50. Rg5# {[%emt 0:00:00]} 1-0

[Event "Dutch Meesterklasse 2024-25"]
[Site "Netherlands"]
[Date "2024.11.23"]
[Round "4.5"]
[White "Kunin, Vitaly"]
[Black "Nijboer, Friso"]
[Result "1/2-1/2"]
[ECO "E73"]
[WhiteElo "2537"]
[BlackElo "2444"]
[Annotator "TA"]
[PlyCount "188"]
[EventDate "2024.09.21"]
[EventType "team-tourn"]
[EventCountry "NED"]
[SourceTitle "playchess.com"]
[Source "ChessBase"]
[SourceQuality "1"]
[TimeControl "40/5400+30:1800+30"]

{[%evp 98,188,69,69,91,91,91,91,98,98,98,68,98,79,91,81,94,75,76,76,76,76,83,91,114,114,158,90,94,63,138,139,184,184,189,189,255,245,304,287,283,228,243,201,187,176,172,172,173,138,240,189,216,200,204,193,282,64,67,67,67,67,93,93,100,57,57,57,57,34,34,39,39,39,39,84,91,39,56,60,75,47,76,8,8,8,8,8,8,8,8,8,8]} 1. d4 {[%emt 0:00:28]} Nf6 {[%emt 0:00:14]} 2. c4 {[%emt 0:00:47]} g6 {[%emt 0:00:05]} 3. Nc3 {[%emt 0:00:09]} Bg7 {[%emt 0:00:05]} 4. e4 {[%emt 0:00:09]} d6 {[%emt 0:00:06]} 5. Be2 {[%emt 0:00:50]} O-O {[%emt 0:00:30]} 6. Be3 {[%emt 0:00:42]} c5 {[%emt 0:05:48] 6...Na6 is setting a new trend.} 7. dxc5 {[%emt 0:02:11] E73: King's Indian: Averbakh Variation without 6...c5.} Qa5 {[%emt 0:06:15]} 8. f3 {[%emt 0:01:16]} dxc5 {[%emt 0:04:07]} 9. e5 {[%emt 0:00:20]} Ne8 {[%emt 0:20:14] is the legacy move (9...Rd8).} 10. f4 {[%emt 0:01:39]} Nc6 {[%emt 0:03:23]} 11. Nf3 {[%emt 0:00:40]} Be6 {[%emt 0:26:58]} 12. O-O {[%emt 0:02:48]} Rd8 {[%emt 0:02:23]} 13. Nd5 $146 {[%emt 0:04:39]} ({Predecessor:} 13. Qb3) 13... Rd7 {[%emt 0:07:01]} 14. Qb3 {[%emt 0:04:09]} Nc7 {[%emt 0:02:07]} 15. Nxc7 {[%emt 0:12:24]} Rxc7 {[%emt 0:02:38]} 16. Rad1 {[%emt 0:07:00]} f6 {[%emt 0:02:46]} 17. Bf2 {[%emt 0:15:47]} Qb4 {[%emt 0:08:58]} 18. Qxb4 {[%emt 0:11:14]} Nxb4 {[%emt 0:00:38]} 19. a3 {[%emt 0:00:43]} Nc6 {[%emt 0:00:05]} 20. exf6 {[%emt 0:03:49]} Bxf6 {[%emt 0:00:06]} 21. Bxc5 {[%emt 0:05:19]} Na5 {[%emt 0:01:53]} 22. Bxa7 {[%emt 0:04:19]} Nxc4 {[%emt 0:00:49]} 23. Nd4 {[%emt 0:01:58]} Bf7 {[%emt 0:00:05]} 24. Nb5 {[%emt 0:01:48]} Rcc8 {[%emt 0:01:05]} 25. b3 {[%emt 0:01:44]} Nb2 {[%emt 0:01:48]} 26. Rd2 {[%emt 0:03:21]} Rfd8 {[%emt 0:00:02]} 27. Bd4 {[%emt 0:00:42]} Be8 {[%emt 0:00:19]} 28. Rxb2 {[%emt 0:02:48]} Rxd4 {[%emt 0:00:09]} 29. Ra2 {[%emt 0:00:56]} Re4 {[%emt 0:01:48]} 30. Bc4+ {[%emt 0:02:35]} Kg7 {[%emt 0:00:23]} 31. a4 {[%emt 0:01:13]} Bxb5 {[%emt 0:00:42]} 32. axb5 {[%emt 0:00:44]} Bd4+ {[%emt 0:01:11]} 33. Kh1 {[%emt 0:00:06]} b6 {[%emt 0:00:09]} 34. g3 {[%emt 0:00:12]} Bc5 {[%emt 0:00:35]} 35. Rd1 {[%emt 0:00:44]} Rd4 {[%emt 0:00:13]} 36. Rxd4 {[%emt 0:01:23]} Bxd4 {[%emt 0:00:02]} 37. Re2 {[%emt 0:01:27]} Bc5 {[%emt 0:00:17]} 38. Kg2 {[%emt 0:00:10]} Rd8 {[%emt 0:01:06]} 39. Kf3 {[%emt 0:00:18]} Kf8 {[%emt 0:02:11]} 40. h4 {[%emt 0:00:46]} Ra8 {[%emt 0:00:29]} 41. h5 {[%emt 0:31:51]} gxh5 {[%emt 0:02:07]} 42. Rh2 {[%emt 0:00:00]} Kg7 {[%emt 0:00:40]} 43. Rxh5 {[%emt 0:00:00]} h6 {[%emt 0:00:04]} 44. Re5 {[%emt 0:00:00]} Bd6 {[%emt 0:00:49]} 45. Re2 {[%emt 0:00:00]} Rf8 {[%emt 0:06:31]} 46. Ke4 {[%emt 0:00:00]} Rf6 {[%emt 0:00:39]} 47. Ra2 {[%emt 0:00:00]} Bc5 {[%emt 0:07:17]} 48. Bd5 {[%emt 0:00:00]} Rg6 {[%emt 0:00:39]} 49. Kf3 {[%emt 0:00:00]} Rd6 {[%emt 0:00:12]} 50. Bc4 {[%emt 0:00:00]} Rd8 {[%emt 0:00:11]} 51. Kg4 {[%emt 0:00:00]} Bb4 {[%emt 0:02:09]} 52. Re2 {[%emt 0:00:00]} Rf8 {[%emt 0:00:55]} 53. Re4 {[%emt 0:00:00]} Bd6 {[%emt 0:00:22]} 54. Bd5 {[%emt 0:00:00]} Rf6 {[%emt 0:03:02]} 55. Ra4 {[%emt 0:00:00]} Bc5 {[%emt 0:04:42]} 56. Ra7 {[%emt 0:00:00]} Rf8 {[%emt 0:00:17]} 57. Kf3 {[%emt 0:00:00]} Kf6 {[%emt 0:01:08]} 58. Rc7 {[%emt 0:00:00]} Rd8 {[%emt 0:00:24]} 59. Ke4 {[%emt 0:00:00]} Bf2 {[%emt 0:03:56]} 60. g4 {[%emt 0:00:00]} e6 {[%emt 0:02:27]} 61. Bc4 $1 {[%emt 0:00:00]} (61. Rc6 $2 Rxd5 62. f5 Re5+ (62... Rxb5 $2 63. Rxe6+ Kg7 64. Re7+ Kg8 65. Re6 $17) 63. Kf3 Bd4 64. fxe6 Rxe6 $19 (64... Rxb5 $2 65. Ke4 $19)) 61... Bc5 {[%emt 0:00:08] [#]} 62. Kf3 {[%emt 0:01:38]} (62. g5+ $142 $1 hxg5 63. fxg5+ Kxg5 64. Rxc5+ bxc5 65. Ke5) 62... Rd4 $16 {[%emt 0:01:03]} 63. Rc6 {[%emt 0:01:38]} Bd6 {[%emt 0:01:38]} (63... Rd6 $1 $14) 64. Ke3 $16 {[%emt 0:01:26]} (64. Rxb6 $6 Rxf4+ 65. Ke2 Ke5 $11) 64... Rd1 {[%emt 0:00:13]} 65. Ke2 {[%emt 0:00:34]} ({Worse is} 65. Rxb6 Bc5+ 66. Ke2 Bxb6 $11) 65... Rd4 {[%emt 0:00:10]} 66. Rxb6 {[%emt 0:00:25]} Ke7 {[%emt 0:00:33]} (66... Bxf4 {might work better.} 67. Rxe6+ Kg5) 67. Rb7+ $18 {[%emt 0:01:03]} Kf6 {[%emt 0:00:05]} 68. Rd7 {[%emt 0:01:03]} Bc5 {[%emt 0:00:41]} 69. Rc7 {[%emt 0:00:30]} Bd6 {[%emt 0:00:30]} 70. Rc6 {[%emt 0:02:39]} Bxf4 {[%emt 0:00:08]} 71. Rxe6+ {[%emt 0:00:22]} (71. Bxe6 Ke7 72. Bg8 Kd7) 71... Kg5 {[%emt 0:00:03]} 72. Kf3 {[%emt 0:01:03]} Rd6 {[%emt 0:01:25]} 73. Re7 {[%emt 0:01:34]} Rf6 {[%emt 0:00:08]} (73... Bh2 $16 {keeps fighting.} 74. Rg7+ Kf6) 74. Rg7+ {[%emt 0:00:34]} Kh4 {[%emt 0:00:28]} 75. Ke4 {[%emt 0:02:40]} Bg5 {[%emt 0:00:24]} 76. Ke5 {[%emt 0:02:24]} Rf8 {[%emt 0:00:30]} (76... Rb6 {was called for.} 77. Kd5 Rf6) 77. Rf7 $2 {[%emt 0:01:40]} (77. Kd6 $18) 77... Rxf7 $14 {[%emt 0:01:29]} 78. Bxf7 {[%emt 0:00:07]} Kxg4 {[%emt 0:00:04]} 79. b6 {[%emt 0:00:33]} Kf3 {[%emt 0:00:07]} 80. b4 {[%emt 0:01:17]} Ke3 {[%emt 0:00:37]} 81. b7 {[%emt 0:00:51]} Bf4+ {[%emt 0:00:09]} 82. Kd5 {[%emt 0:00:27]} Kd3 {[%emt 0:00:42]} 83. b5 {[%emt 0:00:52]} Kc3 {[%emt 0:00:06]} 84. Kc5 {[%emt 0:00:15]} Bg3 {[%emt 0:00:49]} 85. Bh5 {[%emt 0:00:11]} Kb3 {[%emt 0:00:28]} 86. Bd1+ {[%emt 0:00:06]} Ka3 {[%emt 0:00:45] [#]} 87. Kb6 {[%emt 0:01:18]} ({Of course not} 87. b6 $6 h5 $11) (87. Kc4 $1 $16) 87... Kb4 $14 {[%emt 0:00:20]} 88. Be2 {[%emt 0:00:11]} Bb8 {[%emt 0:01:07]} 89. Kc6 {[%emt 0:00:07]} Ka5 {[%emt 0:00:20]} 90. Kd7 {[%emt 0:01:22]} ({White should try} 90. Bh5 $16) 90... Kb6 $11 {[%emt 0:00:13]} 91. Kc8 {[%emt 0:00:05]} Bf4 {[%emt 0:00:20]} 92. b8=Q+ {[%emt 0:00:29]} Bxb8 {[%emt 0:00:04]} 93. Kxb8 {[%emt 0:00:07]} h5 $1 {[%emt 0:00:03]} 94. Bxh5 {[%emt 0:00:56]} Kxb5 {[%emt 0:00:38]} 1/2-1/2

[Event "Dutch Meesterklasse 2024-25"]
[Site "Netherlands"]
[Date "2024.11.23"]
[Round "4.6"]
[White "Zelbel, Patrick"]
[Black "Korneev, Oleg"]
[Result "1/2-1/2"]
[ECO "C45"]
[WhiteElo "2493"]
[BlackElo "2459"]
[Annotator "RC"]
[PlyCount "56"]
[EventDate "2024.09.21"]
[EventType "team-tourn"]
[EventCountry "NED"]
[SourceTitle "playchess.com"]
[Source "ChessBase"]
[SourceQuality "1"]
[TimeControl "40/5400+30:1800+30"]

1. e4 {[%emt 0:00:03]} e5 {[%emt 0:00:04]} 2. Nf3 {[%emt 0:00:33]} Nc6 {[%emt 0:00:01]} 3. d4 {[%emt 0:00:20]} exd4 {[%emt 0:02:09]} 4. Nxd4 {[%emt 0:00:06]} Bc5 {[%emt 0:00:01]} 5. Nb3 {[%emt 0:00:47]} Bb6 {[%emt 0:00:03]} 6. Nc3 {[%emt 0:00:06]} d6 {[%emt 0:00:02]} 7. Bf4 {[%emt 0:01:50]} Nge7 {[%emt 0:15:31]} 8. Qd2 {[%emt 0:00:41]} O-O {[%emt 0:05:54]} 9. O-O-O {[%emt 0:00:30]} f5 {[%emt 0:00:01]} 10. Bc4+ {[%emt 0:05:38]} Kh8 {[%emt 0:00:05]} 11. h4 {[%emt 0:00:09]} fxe4 {[%emt 0:02:30]} 12. h5 {[%emt 0:01:39]} e3 {[%emt 0:16:30]} 13. fxe3 {[%emt 0:13:24]} Bg4 {[%emt 0:03:44]} 14. h6 {[%emt 0:06:34]} g5 {[%emt 0:03:05]} 15. Bxg5 {[%emt 0:20:10]} Bxd1 {[%emt 0:00:18]} 16. Nd4 {[%emt 0:13:36]} Ne5 {[%emt 0:09:12]} 17. Qxd1 {[%emt 0:02:06]} Qe8 {[%emt 0:12:10]} 18. Bb3 {[%emt 0:06:01]} Nf5 {[%emt 0:03:04]} 19. Nd5 {[%emt 0:11:11]} Qg6 {[%emt 0:02:07]} 20. Nxb6 {[%emt 0:06:34]} axb6 {[%emt 0:02:27]} 21. Bf4 {[%emt 0:02:19]} Nxd4 {[%emt 0:03:34]} 22. Qxd4 {[%emt 0:00:03]} Qf6 {[%emt 0:03:21]} 23. Bg3 {[%emt 0:04:54]} Rae8 {[%emt 0:02:41]} 24. Be1 {[%emt 0:01:23]} b5 {[%emt 0:01:02]} 25. Bd5 {[%emt 0:00:40]} c6 {[%emt 0:00:28]} 26. Be4 {[%emt 0:00:03]} Ng4 {[%emt 0:09:56]} 27. Bf3 {[%emt 0:02:01]} Qxd4 {[%emt 0:01:02]} 28. exd4 {[%emt 0:00:01]} Ne3 {[%emt 0:02:51]} 1/2-1/2

[Event "Dutch Meesterklasse 2024-25"]
[Site "Netherlands"]
[Date "2024.11.23"]
[Round "4.7"]
[White "Kollen, Zyon"]
[Black "Vrolijk, Liam"]
[Result "1/2-1/2"]
[ECO "C47"]
[WhiteElo "2346"]
[BlackElo "2512"]
[Annotator "RC"]
[PlyCount "77"]
[EventDate "2024.09.21"]
[EventType "team-tourn"]
[EventCountry "NED"]
[SourceTitle "playchess.com"]
[Source "ChessBase"]
[SourceQuality "1"]
[TimeControl "40/5400+30:1800+30"]

1. Nc3 {[%emt 0:00:20]} Nf6 {[%emt 0:07:25]} 2. e4 {[%emt 0:04:16]} e5 {[%emt 0:05:53]} 3. Nf3 {[%emt 0:03:14]} Nc6 {[%emt 0:00:08]} 4. g3 {[%emt 0:01:14]} Bc5 {[%emt 0:02:31]} 5. Bg2 {[%emt 0:03:32]} d6 {[%emt 0:01:42]} 6. d3 {[%emt 0:01:34]} a5 {[%emt 0:00:52]} 7. O-O {[%emt 0:05:27]} O-O {[%emt 0:04:28]} 8. Bg5 {[%emt 0:06:14]} h6 {[%emt 0:00:59]} 9. Be3 {[%emt 0:05:14]} Bxe3 {[%emt 0:05:54]} 10. fxe3 {[%emt 0:00:11]} Rb8 {[%emt 0:04:11]} 11. Qd2 {[%emt 0:04:58]} b5 {[%emt 0:04:51]} 12. Nd5 {[%emt 0:02:59]} Nxd5 {[%emt 0:02:18]} 13. exd5 {[%emt 0:00:07]} Ne7 {[%emt 0:00:16]} 14. Nh4 {[%emt 0:20:10]} b4 {[%emt 0:04:12]} 15. e4 {[%emt 0:00:09]} c6 {[%emt 0:18:43]} 16. dxc6 {[%emt 0:01:39]} Nxc6 {[%emt 0:00:11]} 17. Nf5 {[%emt 0:00:56]} Kh7 {[%emt 0:00:49]} 18. Rf2 {[%emt 0:09:14]} Ne7 {[%emt 0:05:21]} 19. a3 {[%emt 0:02:31]} bxa3 {[%emt 0:02:32]} 20. b3 {[%emt 0:00:52]} Nxf5 {[%emt 0:02:23]} 21. exf5 {[%emt 0:00:06]} Bb7 {[%emt 0:00:19]} 22. Rxa3 {[%emt 0:03:48]} Bxg2 {[%emt 0:00:54]} 23. Kxg2 {[%emt 0:00:05]} Rb4 {[%emt 0:01:12]} 24. f6 {[%emt 0:00:36]} gxf6 {[%emt 0:05:40]} 25. c3 {[%emt 0:00:09]} Rb8 {[%emt 0:06:32]} 26. c4 {[%emt 0:04:29]} Rg8 {[%emt 0:00:58]} 27. Qxa5 {[%emt 0:01:49]} Qxa5 {[%emt 0:03:34]} 28. Rxa5 {[%emt 0:00:04]} Rxb3 {[%emt 0:00:08]} 29. Rd5 {[%emt 0:00:08]} Rg6 {[%emt 0:03:22]} 30. Rxd6 {[%emt 0:00:28]} Rc3 {[%emt 0:01:09]} 31. Kf1 {[%emt 0:11:31]} e4 {[%emt 0:01:14]} 32. dxe4 {[%emt 0:00:20]} Rxc4 {[%emt 0:00:08]} 33. e5 {[%emt 0:03:18]} Re4 {[%emt 0:00:54]} 34. exf6 {[%emt 0:01:28]} Rg5 {[%emt 0:00:14]} 35. Rd8 {[%emt 0:01:19]} Ree5 {[%emt 0:01:19]} 36. Rf8 {[%emt 0:01:13]} Kg6 {[%emt 0:00:06]} 37. Rg8+ {[%emt 0:00:32]} Kh7 {[%emt 0:00:09]} 38. Rf8 {[%emt 0:00:52]} Kg6 {[%emt 0:00:05]} 39. Rg8+ {[%emt 0:00:11]} 1/2-1/2